[Event "41st Nezhmetdinov Memorial 2019"]
[Site "Kazan"]
[Date "2019.05.31"]
[Round "1.10"]
[White "Bagautdinov, Ilgiz"]
[Black "Iljiushenok, Ilia"]
[Result "0-1"]
[ECO "D93"]
[WhiteElo "2018"]
[BlackElo "2477"]
[Annotator "ChessBase"]
[PlyCount "70"]
[EventDate "2019.05.31"]
[EventType "swiss"]
[EventCountry "RUS"]
[SourceTitle "playchess.com"]
[Source "ChessBase"]
[SourceQuality "1"]
[TimeControl "5400+30"]

1. d4 {[%emt 0:00:00]} Nf6 {[%emt 0:00:00]} 2. c4 {[%emt 0:00:00]} g6 {[%emt 0:00:00]} 3. Nc3 {[%emt 0:00:04]} d5 {[%emt 0:00:23]} 4. Nf3 {[%emt 0:00:16]} Bg7 {[%emt 0:00:05]} 5. Bf4 {[%emt 0:00:16]} O-O {[%emt 0:00:19]} 6. e3 {[%emt 0:00:12]} c5 {[%emt 0:00:49]} 7. dxc5 {[%emt 0:00:20]} Ne4 {[%emt 0:00:26]} 8. Rc1 {[%emt 0:08:28]} Nxc3 {[%emt 0:10:43]} 9. bxc3 {[%emt 0:00:17]} Qa5 {[%emt 0:00:16]} 10. Qb3 {[%emt 0:06:19]} dxc4 {[%emt 0:07:50]} 11. Bxc4 {[%emt 0:00:22]} Qxc5 {[%emt 0:01:25]} 12. Ng5 {[%emt 0:06:20]} e6 {[%emt 0:01:14]} 13. O-O {[%emt 0:00:59]} Nc6 {[%emt 0:09:01]} 14. Ne4 {[%emt 0:05:43]} Qh5 {[%emt 0:01:34]} 15. Ng3 {[%emt 0:08:34]} Qh4 {[%emt 0:04:27]} 16. Qa4 {[%emt 0:13:20]} Ne5 {[%emt 0:23:13]} 17. Bb5 {[%emt 0:05:07]} Qe7 {[%emt 0:16:02]} 18. Ne4 {[%emt 0:05:52]} a6 {[%emt 0:01:13]} 19. Rfd1 {[%emt 0:01:58]} h6 {[%emt 0:02:38]} 20. f3 {[%emt 0:05:31]} Kh7 {[%emt 0:02:13]} 21. Be2 {[%emt 0:04:46]} f5 {[%emt 0:04:18]} 22. Nf2 {[%emt 0:11:22]} g5 {[%emt 0:00:35]} 23. Bg3 {[%emt 0:00:05]} Rf7 {[%emt 0:05:35]} 24. f4 {[%emt 0:04:21]} Nc6 {[%emt 0:01:20]} 25. fxg5 {[%emt 0:00:41]} Qxg5 {[%emt 0:00:11]} 26. Bf4 {[%emt 0:00:34]} Qg6 {[%emt 0:00:04]} 27. Bc4 {[%emt 0:01:49]} b5 {[%emt 0:01:46]} 28. Bxb5 {[%emt 0:03:12]} axb5 {[%emt 0:00:04]} 29. Qxa8 {[%emt 0:00:31]} Bb7 {[%emt 0:00:02]} 30. Qe8 {[%emt 0:00:48]} Nd4 {[%emt 0:00:09]} 31. Bg3 {[%emt 0:00:19]} Ne2+ {[%emt 0:00:27]} 32. Kf1 {[%emt 0:00:05]} Nxc1 {[%emt 0:00:11]} 33. Rxc1 {[%emt 0:00:30]} e5 {[%emt 0:00:25]} 34. e4 {[%emt 0:02:20]} fxe4 {[%emt 0:00:13]} 35. Re1 {[%emt 0:00:12]} Rxf2+ {[%emt 0:00:04]} 0-1

[Event "41st Nezhmetdinov Memorial 2019"]
[Site "Kazan"]
[Date "2019.06.01"]
[Round "2.3"]
[White "Shoboev, Dandar"]
[Black "Timofeev, Artyom"]
[Result "0-1"]
[ECO "D85"]
[WhiteElo "2288"]
[BlackElo "2602"]
[Annotator "RC"]
[PlyCount "82"]
[EventDate "2019.05.31"]
[EventType "swiss"]
[EventCountry "RUS"]
[SourceTitle "playchess.com"]
[Source "ChessBase"]
[SourceQuality "1"]
[TimeControl "5400+30"]

1. d4 {[%emt 0:00:00]} Nf6 {[%emt 0:00:00]} 2. c4 {[%emt 0:00:00]} g6 {[%emt 0:00:00]} 3. Nc3 {[%emt 0:00:00]} d5 {[%emt 0:00:00]} 4. cxd5 {[%emt 0:00:00]} Nxd5 {[%emt 0:00:00]} 5. e4 {[%emt 0:00:00]} Nxc3 {[%emt 0:00:27]} 6. bxc3 {[%emt 0:00:02]} Bg7 {[%emt 0:00:04]} 7. Nf3 {[%emt 0:00:07]} c5 {[%emt 0:00:22]} 8. Be3 {[%emt 0:00:06]} Qa5 {[%emt 0:04:49]} 9. Qd2 {[%emt 0:00:08]} O-O {[%emt 0:02:52]} 10. Rc1 {[%emt 0:00:16]} Bg4 {[%emt 0:02:38]} 11. d5 {[%emt 0:05:10]} Bxf3 {[%emt 0:20:28]} 12. gxf3 {[%emt 0:00:06]} Nd7 {[%emt 0:02:50]} 13. c4 {[%emt 0:00:08]} Qa3 {[%emt 0:02:13]} 14. f4 {[%emt 0:24:49]} Rad8 {[%emt 0:08:55]} 15. Bg2 {[%emt 0:13:47]} e5 {[%emt 0:12:45]} 16. O-O {[%emt 0:03:01]} exf4 {[%emt 0:01:54]} 17. Bxf4 {[%emt 0:00:05]} Bd4 {[%emt 0:01:25]} 18. Rfe1 {[%emt 0:02:26]} Ne5 {[%emt 0:14:01]} 19. Bxe5 {[%emt 0:01:12]} Bxe5 {[%emt 0:00:04]} 20. f4 {[%emt 0:00:20]} Bd4+ {[%emt 0:00:04]} 21. Kh1 {[%emt 0:00:06]} f6 {[%emt 0:10:12]} 22. Re2 {[%emt 0:04:08]} Rfe8 {[%emt 0:01:40]} 23. Rf1 {[%emt 0:24:20]} Qa6 {[%emt 0:06:57]} 24. Qd3 {[%emt 0:01:18]} Kh8 {[%emt 0:01:18]} 25. Rfe1 {[%emt 0:06:12]} Qd6 {[%emt 0:01:03]} 26. Qg3 {[%emt 0:01:27]} Qa6 {[%emt 0:00:26]} 27. Qd3 {[%emt 0:04:38]} Qa5 {[%emt 0:00:24]} 28. Bh3 {[%emt 0:03:59]} a6 {[%emt 0:01:33]} 29. Rb1 {[%emt 0:01:07]} Qc7 {[%emt 0:00:48]} 30. Qg3 {[%emt 0:00:32]} b5 {[%emt 0:00:15]} 31. cxb5 {[%emt 0:00:32]} axb5 {[%emt 0:00:06]} 32. Be6 {[%emt 0:00:28]} b4 {[%emt 0:00:51]} 33. Rd1 {[%emt 0:01:38]} Bc3 {[%emt 0:02:06]} 34. Rd3 {[%emt 0:00:35]} c4 {[%emt 0:00:27]} 35. Rxc3 {[%emt 0:01:25]} bxc3 {[%emt 0:00:05]} 36. Rf2 {[%emt 0:00:32]} Rxe6 {[%emt 0:01:30]} 37. dxe6 {[%emt 0:00:05]} Qc6 {[%emt 0:00:05]} 38. Re2 {[%emt 0:02:23]} Rd1+ {[%emt 0:00:28]} 39. Kg2 {[%emt 0:00:06]} Qxe6 {[%emt 0:00:07]} 40. Kf2 {[%emt 0:01:42]} Rd3 {[%emt 0:00:56]} 41. Qg2 {[%emt 0:00:56]} Qb6+ {[%emt 0:00:21]} 0-1

[Event "41st Nezhmetdinov Memorial 2019"]
[Site "Kazan"]
[Date "2019.06.01"]
[Round "2.6"]
[White "Puranik, Abhimanyu"]
[Black "Shafigullina, Zarina"]
[Result "0-1"]
[ECO "A05"]
[WhiteElo "2548"]
[BlackElo "2240"]
[Annotator "ChessBase"]
[PlyCount "118"]
[EventDate "2019.05.31"]
[EventType "swiss"]
[EventCountry "RUS"]
[SourceTitle "playchess.com"]
[Source "ChessBase"]
[SourceQuality "1"]
[TimeControl "5400+30"]

1. Nf3 {[%emt 0:00:00]} Nf6 {[%emt 0:00:00]} 2. g3 {[%emt 0:00:00]} b6 {[%emt 0:00:00]} 3. Bg2 {[%emt 0:00:00]} Bb7 {[%emt 0:00:00]} 4. O-O {[%emt 0:00:19]} e6 {[%emt 0:00:03]} 5. d3 {[%emt 0:00:36]} Be7 {[%emt 0:00:59]} 6. e4 {[%emt 0:01:02]} d6 {[%emt 0:00:31]} 7. b3 {[%emt 0:01:46]} Nbd7 {[%emt 0:00:25]} 8. Bb2 {[%emt 0:00:07]} c5 {[%emt 0:00:58]} 9. Nbd2 {[%emt 0:03:02]} Qc7 {[%emt 0:03:02]} 10. a4 {[%emt 0:01:27]} a6 {[%emt 0:00:56]} 11. Qe2 {[%emt 0:09:11]} O-O {[%emt 0:01:55]} 12. h3 {[%emt 0:07:10]} Rfe8 {[%emt 0:03:03]} 13. Nh4 {[%emt 0:05:00]} b5 {[%emt 0:05:46]} 14. f4 {[%emt 0:02:06]} bxa4 {[%emt 0:03:20]} 15. Rxa4 {[%emt 0:01:11]} Nb6 {[%emt 0:00:24]} 16. Ra2 {[%emt 0:02:13]} d5 {[%emt 0:04:26]} 17. c4 {[%emt 0:07:58]} a5 {[%emt 0:09:33]} 18. cxd5 {[%emt 0:04:07]} exd5 {[%emt 0:01:09]} 19. e5 {[%emt 0:04:10]} Bf8 {[%emt 0:00:35]} 20. Qf3 {[%emt 0:07:32]} Nfd7 {[%emt 0:00:24]} 21. Rfa1 {[%emt 0:03:48]} a4 {[%emt 0:21:29]} 22. bxa4 {[%emt 0:01:12]} c4 {[%emt 0:00:06]} 23. d4 {[%emt 0:08:26]} Nb8 {[%emt 0:02:56]} 24. a5 {[%emt 0:04:03]} Nc8 {[%emt 0:00:25]} 25. Bc3 {[%emt 0:01:10]} Na7 {[%emt 0:07:18]} 26. Rb1 {[%emt 0:03:09]} Bc6 {[%emt 0:00:55]} 27. Rab2 {[%emt 0:05:59]} Qd7 {[%emt 0:01:21]} 28. Rb6 {[%emt 0:01:51]} Rd8 {[%emt 0:01:35]} 29. f5 {[%emt 0:01:19]} Qe8 {[%emt 0:02:13]} 30. Bb4 {[%emt 0:07:19]} Bxb4 {[%emt 0:02:53]} 31. R6xb4 {[%emt 0:00:18]} Nb5 {[%emt 0:00:12]} 32. f6 {[%emt 0:03:17]} Nxd4 {[%emt 0:03:40]} 33. Qg4 {[%emt 0:00:07]} Ne6 {[%emt 0:00:03]} 34. fxg7 {[%emt 0:00:53]} Nxg7 {[%emt 0:04:53]} 35. Ndf3 {[%emt 0:01:22]} Bd7 {[%emt 0:01:25]} 36. Qf4 {[%emt 0:00:58]} Na6 {[%emt 0:06:07]} 37. Rb6 {[%emt 0:00:24]} Nc5 {[%emt 0:00:04]} 38. Qh6 {[%emt 0:01:25]} Ne4 {[%emt 0:01:57]} 39. Ng5 {[%emt 0:01:44]} Nxg5 {[%emt 0:00:06]} 40. Qxg5 {[%emt 0:00:02]} Be6 {[%emt 0:00:33]} 41. a6 {[%emt 0:00:40]} Ra7 {[%emt 0:02:18]} 42. Bxd5 {[%emt 0:01:41]} h6 {[%emt 0:00:53]} 43. Qxh6 {[%emt 0:00:51]} Bxd5 {[%emt 0:01:04]} 44. Qg5 {[%emt 0:00:19]} Be6 {[%emt 0:01:04]} 45. Rxe6 {[%emt 0:00:43]} fxe6 {[%emt 0:00:21]} 46. Ng6 {[%emt 0:00:07]} Rf7 {[%emt 0:08:06]} 47. a7 {[%emt 0:00:38]} Qd7 {[%emt 0:01:29]} 48. Qh4 {[%emt 0:00:43]} Qxa7+ {[%emt 0:00:09]} 49. Kh1 {[%emt 0:00:04]} Qa8+ {[%emt 0:00:21]} 50. Kg1 {[%emt 0:00:03]} Qa7+ {[%emt 0:00:32]} 51. Kh1 {[%emt 0:00:02]} Qa8+ {[%emt 0:00:05]} 52. Kg1 {[%emt 0:00:18]} Rf3 {[%emt 0:01:05]} 53. Ne7+ {[%emt 0:01:52]} Kf7 {[%emt 0:00:07]} 54. Qg4 {[%emt 0:00:38]} Nf5 {[%emt 0:00:54]} 55. Nxf5 {[%emt 0:00:23]} Rxf5 {[%emt 0:00:16]} 56. Qh4 {[%emt 0:00:33]} Rh8 {[%emt 0:00:45]} 57. Qd4 {[%emt 0:00:05]} Qd5 {[%emt 0:00:25]} 58. Qa7+ {[%emt 0:00:23]} Kg6 {[%emt 0:00:08]} 59. g4 {[%emt 0:00:32]} Rxe5 {[%emt 0:00:12]} 0-1

[Event "41st Nezhmetdinov Memorial 2019"]
[Site "Kazan"]
[Date "2019.06.01"]
[Round "2.7"]
[White "Semenova, Elena"]
[Black "Tsydypov, Zhamsaran"]
[Result "0-1"]
[ECO "B00"]
[WhiteElo "2255"]
[BlackElo "2546"]
[Annotator "ChessBase"]
[PlyCount "54"]
[EventDate "2019.05.31"]
[EventType "swiss"]
[EventCountry "RUS"]
[SourceTitle "playchess.com"]
[Source "ChessBase"]
[SourceQuality "1"]
[TimeControl "5400+30"]

1. e4 {[%emt 0:00:00]} Nc6 {[%emt 0:03:48]} 2. d4 {[%emt 0:00:52]} d5 {[%emt 0:02:22]} 3. e5 {[%emt 0:00:17]} Bf5 {[%emt 0:00:14]} 4. c3 {[%emt 0:00:37]} e6 {[%emt 0:00:26]} 5. Bd3 {[%emt 0:02:36]} Nge7 {[%emt 0:00:55]} 6. Ne2 {[%emt 0:02:40]} f6 {[%emt 0:00:37]} 7. exf6 {[%emt 0:05:42]} gxf6 {[%emt 0:00:11]} 8. Nf4 {[%emt 0:03:41]} Bxd3 {[%emt 0:01:08]} 9. Qxd3 {[%emt 0:00:16]} e5 {[%emt 0:02:55]} 10. Ne6 {[%emt 0:06:40]} Qd7 {[%emt 0:00:53]} 11. Qh3 {[%emt 0:03:58]} Nd8 {[%emt 0:07:36]} 12. Qh5+ {[%emt 0:00:19]} Nf7 {[%emt 0:00:06]} 13. Qh3 {[%emt 0:11:49]} Ng6 {[%emt 0:07:03]} 14. f4 {[%emt 0:01:38]} Nd8 {[%emt 0:00:31]} 15. f5 {[%emt 0:01:13]} Nxe6 {[%emt 0:00:15]} 16. fxe6 {[%emt 0:00:04]} Qb5 {[%emt 0:00:33]} 17. a4 {[%emt 0:06:40]} Qa6 {[%emt 0:00:14]} 18. b4 {[%emt 0:04:32]} exd4 {[%emt 0:01:19]} 19. b5 {[%emt 0:00:40]} Qb6 {[%emt 0:00:06]} 20. O-O {[%emt 0:01:47]} dxc3+ {[%emt 0:03:07]} 21. Kh1 {[%emt 0:00:33]} d4 {[%emt 0:00:19]} 22. Rxf6 {[%emt 0:06:18]} Be7 {[%emt 0:01:19]} 23. Nxc3 {[%emt 0:03:41]} dxc3 {[%emt 0:00:23]} 24. Be3 {[%emt 0:16:35]} Qd6 {[%emt 0:01:44]} 25. Rxg6 {[%emt 0:03:00]} O-O-O {[%emt 0:00:07]} 26. Rg7 {[%emt 0:04:42]} Qd1+ {[%emt 0:00:43]} 27. Rxd1 {[%emt 0:02:34]} Rxd1+ {[%emt 0:00:07]} 0-1

[Event "41st Nezhmetdinov Memorial 2019"]
[Site "Kazan"]
[Date "2019.06.01"]
[Round "2.8"]
[White "Frolyanov, Dmitry"]
[Black "Maletina, Tatiana"]
[Result "1-0"]
[ECO "D15"]
[WhiteElo "2538"]
[BlackElo "2273"]
[Annotator "ChessBase"]
[PlyCount "61"]
[EventDate "2019.05.31"]
[EventType "swiss"]
[EventCountry "RUS"]
[SourceTitle "playchess.com"]
[Source "ChessBase"]
[SourceQuality "1"]
[TimeControl "5400+30"]

1. Nf3 {[%emt 0:00:00]} d5 {[%emt 0:00:00]} 2. d4 {[%emt 0:00:00]} Nf6 {[%emt 0:00:00]} 3. c4 {[%emt 0:00:00]} c6 {[%emt 0:00:00]} 4. Nc3 {[%emt 0:00:02]} a6 {[%emt 0:00:14]} 5. Qc2 {[%emt 0:00:40]} g6 {[%emt 0:04:25]} 6. Bg5 {[%emt 0:01:02]} Bg7 {[%emt 0:01:55]} 7. Bxf6 {[%emt 0:01:14]} exf6 {[%emt 0:10:07]} 8. cxd5 {[%emt 0:00:13]} cxd5 {[%emt 0:00:14]} 9. Qb3 {[%emt 0:01:37]} Nc6 {[%emt 0:02:12]} 10. Qxd5 {[%emt 0:03:20]} Qb6 {[%emt 0:05:32]} 11. Qb3 {[%emt 0:03:26]} Nb4 {[%emt 0:00:06]} 12. e4 {[%emt 0:03:43]} O-O {[%emt 0:06:37]} 13. Bc4 {[%emt 0:03:22]} Bg4 {[%emt 0:12:09]} 14. O-O {[%emt 0:04:53]} Bxf3 {[%emt 0:00:39]} 15. gxf3 {[%emt 0:00:08]} Rac8 {[%emt 0:00:04]} 16. Rfd1 {[%emt 0:06:21]} Qd6 {[%emt 0:00:37]} 17. Bf1 {[%emt 0:09:59]} Nc6 {[%emt 0:11:55]} 18. Nd5 {[%emt 0:04:37]} f5 {[%emt 0:01:22]} 19. e5 {[%emt 0:01:50]} Qd8 {[%emt 0:00:03]} 20. f4 {[%emt 0:01:01]} g5 {[%emt 0:05:25]} 21. Bg2 {[%emt 0:02:32]} gxf4 {[%emt 0:02:39]} 22. Nxf4 {[%emt 0:05:44]} Nxd4 {[%emt 0:09:52]} 23. Qe3 {[%emt 0:00:31]} Rc4 {[%emt 0:00:10]} 24. b3 {[%emt 0:03:13]} Rb4 {[%emt 0:01:31]} 25. Nd5 {[%emt 0:08:47]} f4 {[%emt 0:00:10]} 26. Qh3 {[%emt 0:00:33]} f3 {[%emt 0:22:43]} 27. Nxb4 {[%emt 0:00:37]} fxg2 {[%emt 0:00:05]} 28. Qg4 {[%emt 0:00:51]} Qg5 {[%emt 0:01:38]} 29. Rxd4 {[%emt 0:00:37]} Qxe5 {[%emt 0:00:04]} 30. Rad1 {[%emt 0:00:49]} Re8 {[%emt 0:00:32]} 31. Rd8 {[%emt 0:01:07]} 1-0

[Event "41st Nezhmetdinov Memorial 2019"]
[Site "Kazan"]
[Date "2019.06.01"]
[Round "2.10"]
[White "Kulikov, Almaz"]
[Black "Moiseenko, Vadim"]
[Result "1/2-1/2"]
[ECO "C68"]
[WhiteElo "2253"]
[BlackElo "2525"]
[Annotator "ChessBase"]
[PlyCount "97"]
[EventDate "2019.05.31"]
[EventType "swiss"]
[EventCountry "RUS"]
[SourceTitle "playchess.com"]
[Source "ChessBase"]
[SourceQuality "1"]
[TimeControl "5400+30"]

1. e4 {[%emt 0:00:00]} e5 {[%emt 0:01:36]} 2. Nf3 {[%emt 0:00:00]} Nc6 {[%emt 0:01:56]} 3. Bb5 {[%emt 0:00:00]} a6 {[%emt 0:02:21]} 4. Bxc6 {[%emt 0:00:10]} dxc6 {[%emt 0:00:05]} 5. O-O {[%emt 0:00:16]} Qf6 {[%emt 0:01:18]} 6. d4 {[%emt 0:03:49]} exd4 {[%emt 0:01:03]} 7. Qxd4 {[%emt 0:06:58]} Bg4 {[%emt 0:03:47]} 8. Nc3 {[%emt 0:01:25]} Rd8 {[%emt 0:07:16]} 9. Qxf6 {[%emt 0:02:30]} Nxf6 {[%emt 0:00:06]} 10. Bf4 {[%emt 0:01:17]} Bxf3 {[%emt 0:02:33]} 11. gxf3 {[%emt 0:00:19]} Rd7 {[%emt 0:03:19]} 12. Rad1 {[%emt 0:00:48]} Nh5 {[%emt 0:02:13]} 13. Rxd7 {[%emt 0:03:40]} Kxd7 {[%emt 0:00:46]} 14. Rd1+ {[%emt 0:00:13]} Bd6 {[%emt 0:00:55]} 15. Be3 {[%emt 0:02:11]} Re8 {[%emt 0:03:41]} 16. Ne2 {[%emt 0:04:47]} g6 {[%emt 0:02:05]} 17. Nf4 {[%emt 0:06:10]} Nxf4 {[%emt 0:02:10]} 18. Bxf4 {[%emt 0:00:11]} Ke6 {[%emt 0:00:04]} 19. Be3 {[%emt 0:06:40]} f5 {[%emt 0:04:37]} 20. Kg2 {[%emt 0:02:22]} Kf7 {[%emt 0:06:49]} 21. exf5 {[%emt 0:15:31]} gxf5 {[%emt 0:00:14]} 22. f4 {[%emt 0:03:26]} b5 {[%emt 0:02:16]} 23. Kf3 {[%emt 0:00:53]} c5 {[%emt 0:01:53]} 24. Rg1 {[%emt 0:03:06]} Be7 {[%emt 0:13:47]} 25. Rd1 {[%emt 0:04:35]} Bd6 {[%emt 0:00:46]} 26. Rg1 {[%emt 0:00:28]} h6 {[%emt 0:00:09]} 27. b3 {[%emt 0:08:23]} Re4 {[%emt 0:01:11]} 28. h4 {[%emt 0:01:16]} c4 {[%emt 0:01:29]} 29. h5 {[%emt 0:00:29]} cxb3 {[%emt 0:00:33]} 30. cxb3 {[%emt 0:00:43]} c5 {[%emt 0:04:09]} 31. Rd1 {[%emt 0:01:00]} Ke6 {[%emt 0:00:13]} 32. Rg1 {[%emt 0:00:54]} Kd5 {[%emt 0:01:40]} 33. Rg6 {[%emt 0:05:09]} Re6 {[%emt 0:00:48]} 34. Rg7 {[%emt 0:00:59]} Re7 {[%emt 0:03:56]} 35. Rg6 {[%emt 0:00:28]} c4 {[%emt 0:03:19]} 36. Rxh6 {[%emt 0:06:07]} c3 {[%emt 0:00:12]} 37. Rh8 {[%emt 0:00:59]} c2 {[%emt 0:06:23]} 38. Rc8 {[%emt 0:00:30]} Bc7 {[%emt 0:00:06]} 39. Bc1 {[%emt 0:01:42]} Kc6 {[%emt 0:00:11]} 40. h6 {[%emt 0:02:11]} Rh7 {[%emt 0:00:07]} 41. Ke2 {[%emt 0:01:31]} Rxh6 {[%emt 0:00:36]} 42. Kd3 {[%emt 0:00:32]} Rh2 {[%emt 0:00:34]} 43. Rf8 {[%emt 0:02:05]} Rxf2 {[%emt 0:01:22]} 44. Rxf5 {[%emt 0:00:10]} Bd6 {[%emt 0:00:18]} 45. Rh5 {[%emt 0:01:03]} a5 {[%emt 0:00:52]} 46. a4 {[%emt 0:01:30]} bxa4 {[%emt 0:02:37]} 47. bxa4 {[%emt 0:00:07]} Bxf4 {[%emt 0:00:05]} 48. Bxf4 {[%emt 0:00:14]} Rxf4 {[%emt 0:00:04]} 49. Kxc2 {[%emt 0:00:06]} 1/2-1/2

[Event "41st Nezhmetdinov Memorial 2019"]
[Site "Kazan"]
[Date "2019.06.02"]
[Round "3.4"]
[White "Tsydypov, Zhamsaran"]
[Black "Tunik, Gennady"]
[Result "1/2-1/2"]
[ECO "B46"]
[WhiteElo "2546"]
[BlackElo "2373"]
[Annotator "ChessBase"]
[PlyCount "80"]
[EventDate "2019.05.31"]
[EventType "swiss"]
[EventCountry "RUS"]
[SourceTitle "playchess.com"]
[Source "ChessBase"]
[SourceQuality "1"]
[TimeControl "5400+30"]

1. e4 {[%emt 0:00:00]} c5 {[%emt 0:00:00]} 2. Nf3 {[%emt 0:00:02]} e6 {[%emt 0:00:00]} 3. d4 {[%emt 0:00:11]} cxd4 {[%emt 0:00:08]} 4. Nxd4 {[%emt 0:00:03]} Nc6 {[%emt 0:00:19]} 5. Nc3 {[%emt 0:00:16]} a6 {[%emt 0:00:17]} 6. Bf4 {[%emt 0:00:20]} d6 {[%emt 0:01:58]} 7. Nxc6 {[%emt 0:02:18]} bxc6 {[%emt 0:00:07]} 8. Qd3 {[%emt 0:00:19]} e5 {[%emt 0:01:47]} 9. Bg3 {[%emt 0:00:24]} Qc7 {[%emt 0:01:41]} 10. f4 {[%emt 0:02:09]} Nf6 {[%emt 0:02:40]} 11. O-O-O {[%emt 0:00:32]} Be7 {[%emt 0:00:22]} 12. Be2 {[%emt 0:01:38]} O-O {[%emt 0:03:03]} 13. Qc4 {[%emt 0:03:12]} Qa5 {[%emt 0:04:31]} 14. f5 {[%emt 0:06:18]} Rb8 {[%emt 0:05:57]} 15. Bf2 {[%emt 0:02:17]} Bd7 {[%emt 0:13:52]} 16. Be1 {[%emt 0:09:48]} Qb6 {[%emt 0:03:02]} 17. b3 {[%emt 0:00:18]} d5 {[%emt 0:08:02]} 18. exd5 {[%emt 0:02:31]} cxd5 {[%emt 0:00:11]} 19. Nxd5 {[%emt 0:00:44]} Nxd5 {[%emt 0:00:11]} 20. Qxd5 {[%emt 0:00:41]} Bxf5 {[%emt 0:04:38]} 21. Qxe5 {[%emt 0:07:35]} Bg6 {[%emt 0:06:32]} 22. Qxe7 {[%emt 0:03:58]} Rfe8 {[%emt 0:00:43]} 23. Qd6 {[%emt 0:00:05]} Rxe2 {[%emt 0:00:23]} 24. Qxb6 {[%emt 0:00:53]} Rxc2+ {[%emt 0:00:06]} 25. Kb1 {[%emt 0:00:03]} Rc6+ {[%emt 0:00:19]} 26. Kb2 {[%emt 0:00:08]} Rcxb6 {[%emt 0:00:04]} 27. Bc3 {[%emt 0:01:10]} Be4 {[%emt 0:01:31]} 28. Rd2 {[%emt 0:00:50]} h5 {[%emt 0:00:34]} 29. Re1 {[%emt 0:00:20]} Re6 {[%emt 0:00:18]} 30. Re3 {[%emt 0:01:53]} Rbe8 {[%emt 0:02:17]} 31. Rde2 {[%emt 0:02:58]} g5 {[%emt 0:01:19]} 32. Rg3 {[%emt 0:02:56]} g4 {[%emt 0:00:12]} 33. Rge3 {[%emt 0:01:10]} f5 {[%emt 0:00:17]} 34. g3 {[%emt 0:00:23]} Kf7 {[%emt 0:00:10]} 35. Bd2 {[%emt 0:01:18]} Bf3 {[%emt 0:00:26]} 36. Rxe6 {[%emt 0:00:38]} Rxe6 {[%emt 0:00:05]} 37. Rxe6 {[%emt 0:00:04]} Kxe6 {[%emt 0:00:04]} 38. Kc3 {[%emt 0:00:25]} Kd5 {[%emt 0:00:14]} 39. Kd3 {[%emt 0:00:08]} Be4+ {[%emt 0:00:16]} 40. Ke3 {[%emt 0:00:06]} Bb1 {[%emt 0:00:06]} 1/2-1/2

[Event "41st Nezhmetdinov Memorial 2019"]
[Site "Kazan"]
[Date "2019.06.02"]
[Round "3.5"]
[White "Anikonov, Dmitry"]
[Black "Frolyanov, Dmitry"]
[Result "1/2-1/2"]
[ECO "E04"]
[WhiteElo "2372"]
[BlackElo "2538"]
[Annotator "ChessBase"]
[PlyCount "60"]
[EventDate "2019.05.31"]
[EventType "swiss"]
[EventCountry "RUS"]
[SourceTitle "playchess.com"]
[Source "ChessBase"]
[SourceQuality "1"]
[TimeControl "5400+30"]

1. d4 {[%emt 0:00:00]} Nf6 {[%emt 0:00:00]} 2. c4 {[%emt 0:00:00]} e6 {[%emt 0:00:00]} 3. g3 {[%emt 0:00:00]} d5 {[%emt 0:00:00]} 4. Nf3 {[%emt 0:00:03]} dxc4 {[%emt 0:00:07]} 5. Bg2 {[%emt 0:00:12]} a6 {[%emt 0:00:12]} 6. O-O {[%emt 0:01:21]} Nc6 {[%emt 0:00:23]} 7. e3 {[%emt 0:00:50]} Bd7 {[%emt 0:00:56]} 8. Qe2 {[%emt 0:01:08]} b5 {[%emt 0:00:25]} 9. b3 {[%emt 0:00:12]} cxb3 {[%emt 0:00:44]} 10. axb3 {[%emt 0:00:08]} Be7 {[%emt 0:00:31]} 11. Bb2 {[%emt 0:02:15]} O-O {[%emt 0:02:48]} 12. Nc3 {[%emt 0:00:45]} Nb4 {[%emt 0:04:39]} 13. Ne5 {[%emt 0:03:17]} Rc8 {[%emt 0:06:32]} 14. Rfd1 {[%emt 0:13:58]} Be8 {[%emt 0:08:04]} 15. Ba3 {[%emt 0:20:12]} Bd6 {[%emt 0:02:26]} 16. Bxb4 {[%emt 0:03:53]} Bxb4 {[%emt 0:00:12]} 17. Na2 {[%emt 0:00:03]} Be7 {[%emt 0:05:23]} 18. b4 {[%emt 0:00:14]} Nd5 {[%emt 0:03:33]} 19. Qb2 {[%emt 0:00:55]} c6 {[%emt 0:04:02]} 20. Rdc1 {[%emt 0:12:32]} a5 {[%emt 0:03:31]} 21. bxa5 {[%emt 0:00:46]} Qxa5 {[%emt 0:00:20]} 22. Nc3 {[%emt 0:00:17]} Qd8 {[%emt 0:01:13]} 23. Ne4 {[%emt 0:00:26]} Nb6 {[%emt 0:05:13]} 24. Qb3 {[%emt 0:06:16]} Kh8 {[%emt 0:07:03]} 25. Ra7 {[%emt 0:03:34]} Na4 {[%emt 0:04:58]} 26. Nd3 {[%emt 0:05:10]} Ra8 {[%emt 0:00:52]} 27. Rb7 {[%emt 0:06:07]} Rb8 {[%emt 0:05:54]} 28. Ra7 {[%emt 0:00:13]} Ra8 {[%emt 0:03:40]} 29. Rb7 {[%emt 0:00:53]} Rb8 {[%emt 0:08:07]} 30. Ra7 {[%emt 0:00:14]} Ra8 {[%emt 0:01:22]} 1/2-1/2

[Event "41st Nezhmetdinov Memorial 2019"]
[Site "Kazan"]
[Date "2019.06.02"]
[Round "3.6"]
[White "Bublei, Pavel"]
[Black "Iljiushenok, Ilia"]
[Result "0-1"]
[ECO "A48"]
[WhiteElo "2362"]
[BlackElo "2549"]
[Annotator "ChessBase"]
[PlyCount "58"]
[EventDate "2019.05.31"]
[EventType "swiss"]
[EventCountry "RUS"]
[SourceTitle "playchess.com"]
[Source "ChessBase"]
[SourceQuality "1"]
[TimeControl "5400+30"]

1. d4 {[%emt 0:00:00]} Nf6 {[%emt 0:00:02]} 2. Nf3 {[%emt 0:00:00]} g6 {[%emt 0:00:05]} 3. c4 {[%emt 0:00:14]} Bg7 {[%emt 0:00:04]} 4. g3 {[%emt 0:00:22]} O-O {[%emt 0:00:07]} 5. Bg2 {[%emt 0:00:20]} d6 {[%emt 0:00:05]} 6. O-O {[%emt 0:00:29]} Nc6 {[%emt 0:05:16]} 7. Nc3 {[%emt 0:00:28]} Rb8 {[%emt 0:00:43]} 8. h3 {[%emt 0:05:02]} a6 {[%emt 0:05:20]} 9. e4 {[%emt 0:01:51]} b5 {[%emt 0:07:11]} 10. cxb5 {[%emt 0:03:47]} axb5 {[%emt 0:00:11]} 11. e5 {[%emt 0:00:08]} Nd7 {[%emt 0:14:08]} 12. Ng5 {[%emt 0:00:25]} dxe5 {[%emt 0:00:14]} 13. Bxc6 {[%emt 0:00:23]} exd4 {[%emt 0:00:03]} 14. Ne2 {[%emt 0:34:41]} e5 {[%emt 0:16:07]} 15. f4 {[%emt 0:08:57]} h6 {[%emt 0:29:34]} 16. Nf3 {[%emt 0:03:49]} Rb6 {[%emt 0:02:17]} 17. Bxd7 {[%emt 0:03:55]} Bxd7 {[%emt 0:01:41]} 18. Nxe5 {[%emt 0:09:10]} Bxh3 {[%emt 0:00:11]} 19. Rf2 {[%emt 0:00:19]} c5 {[%emt 0:02:14]} 20. Kh2 {[%emt 0:07:06]} Bc8 {[%emt 0:00:05]} 21. Bd2 {[%emt 0:02:36]} Re6 {[%emt 0:00:46]} 22. Nf3 {[%emt 0:02:37]} Qd5 {[%emt 0:01:37]} 23. g4 {[%emt 0:01:29]} Bb7 {[%emt 0:01:54]} 24. f5 {[%emt 0:00:48]} Re4 {[%emt 0:00:06]} 25. Nf4 {[%emt 0:03:08]} Qd6 {[%emt 0:00:12]} 26. Kh3 {[%emt 0:00:29]} Rxf4 {[%emt 0:00:57]} 27. Bxf4 {[%emt 0:00:06]} Qxf4 {[%emt 0:00:03]} 28. Qd2 {[%emt 0:00:16]} Qd6 {[%emt 0:00:19]} 29. Nh4 {[%emt 0:01:08]} g5 {[%emt 0:02:16]} 0-1